[Event "European Online Club-ch-D 2021"]
[Site "Online"]
[Date "2021.03.27"]
[Round "8.3"]
[White "Kilic, Gokturk Kagan"]
[Black "Pascual Palomo, Lucia"]
[Result "1-0"]
[ECO "A90"]
[WhiteElo "2084"]
[BlackElo "2101"]
[Annotator "NA"]
[PlyCount "123"]
[EventDate "2021.03.27"]
[EventType "team-tourn"]
[EventCountry "NET"]
[SourceTitle "playchess.com"]
[Source "ChessBase"]
[SourceQuality "1"]
[TimeControl "900+5"]

1. d4 {[%emt 0:00:00]} e6 {[%emt 0:00:03]} 2. c4 {[%emt 0:00:09]} f5 {[%emt 0:00:16]} 3. g3 {[%emt 0:00:46]} Nf6 {[%emt 0:00:26]} 4. Bg2 {[%emt 0:00:03]} Bb4+ {[%emt 0:00:18]} 5. Bd2 {[%emt 0:00:11]} Be7 {[%emt 0:00:05]} 6. Nc3 {[%emt 0:00:04]} O-O {[%emt 0:00:03]} 7. Nf3 {[%emt 0:00:10]} c5 {[%emt 0:00:19]} 8. O-O {[%emt 0:00:14]} cxd4 {[%emt 0:00:27]} 9. Nxd4 {[%emt 0:00:03]} Nc6 {[%emt 0:00:02]} 10. Bg5 {[%emt 0:00:47]} h6 {[%emt 0:00:15]} 11. Bxf6 {[%emt 0:00:33]} Bxf6 {[%emt 0:00:14]} 12. Ndb5 {[%emt 0:00:05]} Na5 {[%emt 0:02:01]} 13. Qd3 {[%emt 0:03:03]} Rb8 {[%emt 0:00:39]} 14. Nxa7 {[%emt 0:05:57]} Qc7 {[%emt 0:00:58]} 15. b3 {[%emt 0:00:24]} Bxc3 {[%emt 0:00:56]} 16. Nb5 {[%emt 0:00:25]} Qe5 {[%emt 0:01:26]} 17. Qxc3 {[%emt 0:00:34]} Qxc3 {[%emt 0:00:15]} 18. Nxc3 {[%emt 0:00:02]} b6 {[%emt 0:00:05]} 19. Rfd1 {[%emt 0:00:03]} Rf7 {[%emt 0:00:18]} 20. Rd6 {[%emt 0:00:16]} f4 {[%emt 0:00:43]} 21. Rad1 {[%emt 0:00:12]} Kf8 {[%emt 0:00:29]} 22. Na4 {[%emt 0:01:14]} b5 {[%emt 0:00:27]} 23. cxb5 {[%emt 0:00:04]} Rxb5 {[%emt 0:00:09]} 24. Nb6 {[%emt 0:00:02]} Bb7 {[%emt 0:01:31]} 25. Nxd7+ {[%emt 0:00:04]} Kg8 {[%emt 0:00:26]} 26. Rxe6 {[%emt 0:00:35]} Rbf5 {[%emt 0:01:00]} 27. Bxb7 {[%emt 0:00:52]} Nxb7 {[%emt 0:00:09]} 28. Ne5 {[%emt 0:00:06]} Rf8 {[%emt 0:00:06]} 29. Ng6 {[%emt 0:00:04]} R5f6 {[%emt 0:01:04]} 30. Nxf8 {[%emt 0:00:04]} Kxf8 {[%emt 0:00:04]} 31. Rxf6+ {[%emt 0:00:02]} gxf6 {[%emt 0:00:00]} 32. gxf4 {[%emt 0:00:01]} Nc5 {[%emt 0:00:03]} 33. e3 {[%emt 0:00:02]} Ne4 {[%emt 0:00:02]} 34. Kg2 {[%emt 0:00:01]} Nc3 {[%emt 0:00:01]} 35. Rd2 {[%emt 0:00:02]} Ne4 {[%emt 0:00:02]} 36. Rb2 {[%emt 0:00:02]} Nc3 {[%emt 0:00:02]} 37. b4 {[%emt 0:00:02]} Ke7 {[%emt 0:00:01]} 38. Rb3 {[%emt 0:00:07]} Nb5 {[%emt 0:00:03]} 39. a4 {[%emt 0:00:02]} Na7 {[%emt 0:00:03]} 40. b5 {[%emt 0:00:01]} f5 {[%emt 0:00:01]} 41. a5 {[%emt 0:00:01]} Kd6 {[%emt 0:00:03]} 42. b6 {[%emt 0:00:01]} Nc6 {[%emt 0:00:01]} 43. b7 {[%emt 0:00:03]} Nb8 {[%emt 0:00:02]} 44. Rb6+ {[%emt 0:00:02]} Kc7 {[%emt 0:00:01]} 45. Kg3 {[%emt 0:00:04]} h5 {[%emt 0:00:08]} 46. Kh4 {[%emt 0:00:01]} Nd7 {[%emt 0:00:06]} 47. b8=Q+ {[%emt 0:00:03]} Nxb8 {[%emt 0:00:02]} 48. Rxb8 {[%emt 0:00:01]} Kxb8 {[%emt 0:00:00]} 49. Kxh5 {[%emt 0:00:02]} Kc7 {[%emt 0:00:02]} 50. Kg6 {[%emt 0:00:01]} Kd6 {[%emt 0:00:00]} 51. h4 {[%emt 0:00:02]} Kd5 {[%emt 0:00:00]} 52. h5 {[%emt 0:00:01]} Ke4 {[%emt 0:00:01]} 53. h6 {[%emt 0:00:01]} Kf3 {[%emt 0:00:00]} 54. h7 {[%emt 0:00:01]} Ke2 {[%emt 0:00:01]} 55. h8=Q {[%emt 0:00:03]} Kf1 {[%emt 0:00:00]} 56. a6 {[%emt 0:00:02]} Ke2 {[%emt 0:00:00]} 57. a7 {[%emt 0:00:01]} Kf3 {[%emt 0:00:01]} 58. a8=Q+ {[%emt 0:00:02]} Ke2 {[%emt 0:00:00]} 59. Qh5+ {[%emt 0:00:04]} Kf1 {[%emt 0:00:00]} 60. Qa1+ {[%emt 0:00:03]} Kg2 {[%emt 0:00:01]} 61. Qhh1+ {[%emt 0:00:02]} Kxf2 {[%emt 0:00:03]} 62. Qae1# {[%emt 0:00:02]} 1-0

[Event "European Online Club-ch-D 2021"]
[Site "Online"]
[Date "2021.03.27"]
[Round "8.4"]
[White "Estevez Sacristan, Deva"]
[Black "Erdogmus, Yagiz Kaan"]
[Result "0-1"]
[ECO "B45"]
[WhiteElo "1932"]
[BlackElo "1955"]
[Annotator "NA"]
[PlyCount "66"]
[EventDate "2021.03.27"]
[EventType "team-tourn"]
[EventCountry "NET"]
[SourceTitle "playchess.com"]
[Source "ChessBase"]
[SourceQuality "1"]
[TimeControl "900+5"]

1. e4 {[%emt 0:00:00]} c5 {[%emt 0:00:03]} 2. Nc3 {[%emt 0:00:02]} e6 {[%emt 0:00:02]} 3. Nf3 {[%emt 0:00:03]} Nc6 {[%emt 0:00:02]} 4. d4 {[%emt 0:00:01]} cxd4 {[%emt 0:00:02]} 5. Nxd4 {[%emt 0:00:02]} Nf6 {[%emt 0:00:02]} 6. g3 {[%emt 0:00:14]} Bb4 {[%emt 0:00:06]} 7. Bg2 {[%emt 0:00:04]} O-O {[%emt 0:00:04]} 8. O-O {[%emt 0:00:07]} d6 {[%emt 0:00:03]} 9. Nxc6 {[%emt 0:01:49]} bxc6 {[%emt 0:00:04]} 10. Na4 {[%emt 0:00:18]} Ba6 {[%emt 0:00:15]} 11. c3 {[%emt 0:00:48]} Bxf1 {[%emt 0:00:07]} 12. Qxf1 {[%emt 0:00:03]} Ba5 {[%emt 0:00:02]} 13. Bg5 {[%emt 0:00:05]} h6 {[%emt 0:00:29]} 14. Bf4 {[%emt 0:00:56]} Bc7 {[%emt 0:00:51]} 15. Rd1 {[%emt 0:00:07]} d5 {[%emt 0:00:34]} 16. Be3 {[%emt 0:01:45]} Ng4 {[%emt 0:02:45]} 17. Bc5 {[%emt 0:00:17]} Bd6 {[%emt 0:00:06]} 18. h3 {[%emt 0:00:28]} Bxc5 {[%emt 0:00:20]} 19. Nxc5 {[%emt 0:00:38]} Ne5 {[%emt 0:00:04]} 20. exd5 {[%emt 0:00:13]} cxd5 {[%emt 0:00:04]} 21. Qe2 {[%emt 0:00:14]} Qc7 {[%emt 0:02:05]} 22. Na6 {[%emt 0:00:39]} Qb6 {[%emt 0:01:01]} 23. Qxe5 {[%emt 0:00:42]} Qxa6 {[%emt 0:00:04]} 24. a3 {[%emt 0:00:02]} Rab8 {[%emt 0:00:11]} 25. Rd2 {[%emt 0:01:54]} Rb3 {[%emt 0:00:20]} 26. Rd4 {[%emt 0:00:38]} f6 {[%emt 0:02:30]} 27. Qc7 {[%emt 0:01:07]} Rb7 {[%emt 0:00:42]} 28. Qc5 {[%emt 0:00:25]} Rxb2 {[%emt 0:00:07]} 29. Rd1 {[%emt 0:01:08]} Qb6 {[%emt 0:00:05]} 30. Qxb6 {[%emt 0:02:21]} axb6 {[%emt 0:00:09]} 31. Re1 {[%emt 0:00:07]} Kf7 {[%emt 0:00:03]} 32. Bf1 {[%emt 0:00:10]} Rc8 {[%emt 0:00:04]} 33. Bb5 {[%emt 0:00:02]} Rxb5 {[%emt 0:00:03]} 0-1

[Event "European Online Club-ch-D 2021"]
[Site "Online"]
[Date "2021.03.27"]
[Round "8.6"]
[White "Kvetny, Mark"]
[Black "McShane, Luke J"]
[Result "1/2-1/2"]
[ECO "A48"]
[WhiteElo "2416"]
[BlackElo "2674"]
[Annotator "ChessBase"]
[PlyCount "124"]
[EventDate "2021.03.27"]
[EventType "team-tourn"]
[EventCountry "NET"]
[SourceTitle "playchess.com"]
[Source "ChessBase"]
[SourceQuality "1"]
[TimeControl "900+5"]

1. Nf3 {[%emt 0:00:00]} g6 {[%emt 0:00:22]} 2. d4 {[%emt 0:00:08]} Nf6 {[%emt 0:00:09]} 3. c3 {[%emt 0:00:14]} Bg7 {[%emt 0:00:08]} 4. Bg5 {[%emt 0:00:02]} d6 {[%emt 0:00:12]} 5. Nbd2 {[%emt 0:00:04]} O-O {[%emt 0:00:21]} 6. e4 {[%emt 0:00:06]} Qe8 {[%emt 0:00:28]} 7. Bc4 {[%emt 0:00:27]} e5 {[%emt 0:00:10]} 8. dxe5 {[%emt 0:00:03]} dxe5 {[%emt 0:00:03]} 9. O-O {[%emt 0:00:03]} Nbd7 {[%emt 0:00:08]} 10. b4 {[%emt 0:01:17]} h6 {[%emt 0:00:22]} 11. Bh4 {[%emt 0:00:10]} Nh5 {[%emt 0:00:22]} 12. Bg3 {[%emt 0:00:34]} Nxg3 {[%emt 0:01:16]} 13. hxg3 {[%emt 0:00:02]} Nf6 {[%emt 0:00:03]} 14. a4 {[%emt 0:00:23]} a5 {[%emt 0:00:55]} 15. Qb3 {[%emt 0:00:17]} Ng4 {[%emt 0:01:29]} 16. Rfe1 {[%emt 0:00:40]} Bf6 {[%emt 0:00:30]} 17. Nf1 {[%emt 0:00:32]} Kg7 {[%emt 0:00:26]} 18. Ne3 {[%emt 0:01:14]} h5 {[%emt 0:00:11]} 19. b5 {[%emt 0:01:02]} Qe7 {[%emt 0:01:04]} 20. Rad1 {[%emt 0:00:55]} Rb8 {[%emt 0:02:45]} 21. Re2 {[%emt 0:00:31]} b6 {[%emt 0:00:51]} 22. Nd5 {[%emt 0:01:34]} Qc5 {[%emt 0:00:09]} 23. Ne1 {[%emt 0:00:04]} h4 {[%emt 0:02:10]} 24. Nd3 {[%emt 0:02:23]} Qd6 {[%emt 0:00:03]} 25. gxh4 {[%emt 0:00:10]} Bxh4 {[%emt 0:00:04]} 26. g3 {[%emt 0:00:28]} Bd8 {[%emt 0:00:10]} 27. f3 {[%emt 0:00:50]} Nf6 {[%emt 0:00:04]} 28. Rdd2 {[%emt 0:00:37]} Nxd5 {[%emt 0:00:39]} 29. Bxd5 {[%emt 0:00:07]} Qf6 {[%emt 0:00:16]} 30. Ne1 {[%emt 0:01:09]} Be7 {[%emt 0:00:08]} 31. Rh2 {[%emt 0:00:17]} Bc5+ {[%emt 0:00:19]} 32. Kf1 {[%emt 0:00:01]} Qe7 {[%emt 0:00:15]} 33. Nd3 {[%emt 0:00:23]} Bd7 {[%emt 0:00:34]} 34. Nxc5 {[%emt 0:00:15]} Qxc5 {[%emt 0:00:20]} 35. Qc4 {[%emt 0:00:03]} Qxc4+ {[%emt 0:00:10]} 36. Bxc4 {[%emt 0:00:01]} Rbd8 {[%emt 0:00:02]} 37. Ke1 {[%emt 0:00:19]} Bc8 {[%emt 0:00:02]} 38. Rxd8 {[%emt 0:00:08]} Rxd8 {[%emt 0:00:03]} 39. Bd5 {[%emt 0:00:02]} Kf6 {[%emt 0:00:13]} 40. Kf2 {[%emt 0:00:14]} Be6 {[%emt 0:00:06]} 41. c4 {[%emt 0:00:02]} Kg7 {[%emt 0:00:10]} 42. Ke3 {[%emt 0:00:05]} g5 {[%emt 0:00:05]} 43. f4 {[%emt 0:00:08]} gxf4+ {[%emt 0:00:05]} 44. gxf4 {[%emt 0:00:01]} exf4+ {[%emt 0:00:01]} 45. Kxf4 {[%emt 0:00:01]} Bc8 {[%emt 0:00:09]} 46. Rg2+ {[%emt 0:00:14]} Kf8 {[%emt 0:00:02]} 47. Ke5 {[%emt 0:00:06]} Ke7 {[%emt 0:00:03]} 48. Rg7 {[%emt 0:00:07]} Rf8 {[%emt 0:00:02]} 49. Rh7 {[%emt 0:00:02]} Bg4 {[%emt 0:00:03]} 50. Kf4 {[%emt 0:00:20]} Bd1 {[%emt 0:00:02]} 51. e5 {[%emt 0:00:02]} Bxa4 {[%emt 0:00:04]} 52. e6 {[%emt 0:00:01]} Bc2 {[%emt 0:00:03]} 53. Rg7 {[%emt 0:00:17]} a4 {[%emt 0:00:02]} 54. exf7 {[%emt 0:00:05]} a3 {[%emt 0:00:02]} 55. c5 {[%emt 0:00:01]} bxc5 {[%emt 0:00:16]} 56. Rg3 {[%emt 0:00:02]} Rd8 {[%emt 0:00:16]} 57. Re3+ {[%emt 0:00:12]} Kf8 {[%emt 0:00:04]} 58. Ba2 {[%emt 0:00:02]} Bd3 {[%emt 0:00:08]} 59. Rg3 {[%emt 0:00:08]} Ke7 {[%emt 0:00:04]} 60. Re3+ {[%emt 0:00:02]} Kf8 {[%emt 0:00:03]} 61. Rg3 {[%emt 0:00:10]} Ke7 {[%emt 0:00:08]} 62. Re3+ {[%emt 0:00:05]} Kf8 {[%emt 0:00:02]} 1/2-1/2

[Event "European Online Club-ch-D 2021"]
[Site "Online"]
[Date "2021.03.27"]
[Round "8.7"]
[White "Jones, Gawain C B"]
[Black "Hoffmann, Hendrik"]
[Result "1-0"]
[ECO "B07"]
[WhiteElo "2670"]
[BlackElo "2242"]
[Annotator "ChessBase"]
[PlyCount "153"]
[EventDate "2021.03.27"]
[EventType "team-tourn"]
[EventCountry "NET"]
[SourceTitle "playchess.com"]
[Source "ChessBase"]
[SourceQuality "1"]
[TimeControl "900+5"]

1. e4 {[%emt 0:00:00]} d6 {[%emt 0:00:05]} 2. d4 {[%emt 0:00:03]} Nf6 {[%emt 0:00:03]} 3. Nc3 {[%emt 0:00:01]} c6 {[%emt 0:00:05]} 4. f4 {[%emt 0:00:13]} Qa5 {[%emt 0:00:07]} 5. Bd3 {[%emt 0:00:36]} e5 {[%emt 0:00:08]} 6. Nf3 {[%emt 0:00:03]} Bg4 {[%emt 0:00:05]} 7. dxe5 {[%emt 0:01:49]} dxe5 {[%emt 0:00:08]} 8. h3 {[%emt 0:00:18]} Bxf3 {[%emt 0:00:20]} 9. Qxf3 {[%emt 0:00:03]} exf4 {[%emt 0:00:50]} 10. Bxf4 {[%emt 0:00:14]} Nbd7 {[%emt 0:00:03]} 11. O-O-O {[%emt 0:00:57]} Ne5 {[%emt 0:01:45]} 12. Bxe5 {[%emt 0:00:58]} Qxe5 {[%emt 0:00:06]} 13. Kb1 {[%emt 0:00:39]} Bb4 {[%emt 0:01:40]} 14. Ne2 {[%emt 0:00:04]} O-O {[%emt 0:00:14]} 15. g4 {[%emt 0:00:17]} a5 {[%emt 0:00:19]} 16. h4 {[%emt 0:00:46]} Nd7 {[%emt 0:00:43]} 17. c3 {[%emt 0:00:47]} Bc5 {[%emt 0:00:09]} 18. Bc2 {[%emt 0:00:10]} Qe7 {[%emt 0:00:12]} 19. e5 {[%emt 0:01:03]} Nxe5 {[%emt 0:00:12]} 20. Qe4 {[%emt 0:00:03]} Ng6 {[%emt 0:02:29]} 21. Qg2 {[%emt 0:00:06]} Rad8 {[%emt 0:00:19]} 22. Ng3 {[%emt 0:01:04]} Rxd1+ {[%emt 0:00:45]} 23. Rxd1 {[%emt 0:00:02]} Rd8 {[%emt 0:00:56]} 24. Rxd8+ {[%emt 0:00:38]} Qxd8 {[%emt 0:00:03]} 25. h5 {[%emt 0:00:04]} Qe7 {[%emt 0:00:47]} 26. Qd2 {[%emt 0:01:00]} Nf8 {[%emt 0:00:33]} 27. Nf5 {[%emt 0:00:14]} Qe5 {[%emt 0:00:05]} 28. a3 {[%emt 0:01:00]} g6 {[%emt 0:00:31]} 29. Nd4 {[%emt 0:01:37]} Bxd4 {[%emt 0:00:59]} 30. cxd4 {[%emt 0:00:00]} Qd6 {[%emt 0:00:02]} 31. Qxa5 {[%emt 0:00:42]} Qxd4 {[%emt 0:00:08]} 32. Qc7 {[%emt 0:00:14]} Qd7 {[%emt 0:01:10]} 33. Qb8 {[%emt 0:00:03]} h6 {[%emt 0:00:07]} 34. hxg6 {[%emt 0:00:30]} fxg6 {[%emt 0:00:03]} 35. Bb3+ {[%emt 0:00:05]} Kg7 {[%emt 0:00:09]} 36. Qe5+ {[%emt 0:00:02]} Kh7 {[%emt 0:00:06]} 37. a4 {[%emt 0:00:15]} Qg7 {[%emt 0:00:13]} 38. Qd6 {[%emt 0:00:21]} Nd7 {[%emt 0:00:12]} 39. g5 {[%emt 0:00:10]} hxg5 {[%emt 0:00:36]} 40. Qh2+ {[%emt 0:00:01]} Qh6 {[%emt 0:00:02]} 41. Qc7 {[%emt 0:00:02]} Qg7 {[%emt 0:00:03]} 42. Qxb7 {[%emt 0:00:35]} Nc5 {[%emt 0:00:06]} 43. Qb4 {[%emt 0:00:27]} Qe5 {[%emt 0:00:08]} 44. Bc2 {[%emt 0:00:06]} Kh6 {[%emt 0:00:35]} 45. a5 {[%emt 0:00:05]} Na6 {[%emt 0:00:05]} 46. Qf8+ {[%emt 0:00:09]} Kh5 {[%emt 0:00:03]} 47. Qf3+ {[%emt 0:00:12]} g4 {[%emt 0:00:06]} 48. Qh1+ {[%emt 0:00:05]} Kg5 {[%emt 0:00:04]} 49. Qc1+ {[%emt 0:00:04]} Qf4 {[%emt 0:00:02]} 50. Qe1 {[%emt 0:00:05]} Nb4 {[%emt 0:00:12]} 51. Qe7+ {[%emt 0:00:03]} Kh5 {[%emt 0:00:05]} 52. Qh7+ {[%emt 0:00:01]} Kg5 {[%emt 0:00:01]} 53. Qxg6+ {[%emt 0:00:01]} Kh4 {[%emt 0:00:02]} 54. Qh7+ {[%emt 0:00:01]} Kg3 {[%emt 0:00:02]} 55. Bd1 {[%emt 0:00:09]} Qe5 {[%emt 0:00:14]} 56. a6 {[%emt 0:00:08]} Qa5 {[%emt 0:00:08]} 57. a7 {[%emt 0:00:05]} Qa2+ {[%emt 0:00:06]} 58. Kc1 {[%emt 0:00:01]} Qa1+ {[%emt 0:00:03]} 59. Kd2 {[%emt 0:00:01]} Qxb2+ {[%emt 0:00:02]} 60. Bc2 {[%emt 0:00:06]} Qd4+ {[%emt 0:00:06]} 61. Bd3 {[%emt 0:00:04]} Qb2+ {[%emt 0:00:03]} 62. Bc2 {[%emt 0:00:13]} Qd4+ {[%emt 0:00:03]} 63. Ke2 {[%emt 0:00:12]} Qf2+ {[%emt 0:00:11]} 64. Kd1 {[%emt 0:00:01]} Qd4+ {[%emt 0:00:03]} 65. Bd3 {[%emt 0:00:06]} Qa1+ {[%emt 0:00:07]} 66. Ke2 {[%emt 0:00:04]} Qb2+ {[%emt 0:00:02]} 67. Bc2 {[%emt 0:00:04]} Nxc2 {[%emt 0:00:13]} 68. Qd3+ {[%emt 0:00:11]} Kh4 {[%emt 0:00:10]} 69. a8=Q {[%emt 0:00:03]} Nb4+ {[%emt 0:00:02]} 70. Qd2 {[%emt 0:00:01]} Qe5+ {[%emt 0:00:03]} 71. Kd1 {[%emt 0:00:01]} Nd5 {[%emt 0:00:07]} 72. Qa3 {[%emt 0:00:10]} Nf4 {[%emt 0:00:04]} 73. Qac3 {[%emt 0:00:06]} Qe8 {[%emt 0:00:05]} 74. Qf6+ {[%emt 0:00:05]} Kg3 {[%emt 0:00:03]} 75. Qdxf4+ {[%emt 0:00:02]} Kg2 {[%emt 0:00:02]} 76. Qf2+ {[%emt 0:00:03]} Kh1 {[%emt 0:00:03]} 77. Q6h4# {[%emt 0:00:01]} 1-0

[Event "European Online Club-ch-D 2021"]
[Site "Online"]
[Date "2021.03.27"]
[Round "8.8"]
[White "Kelmendi, Bajrush"]
[Black "Cheparinov, Ivan"]
[Result "0-1"]
[ECO "B20"]
[WhiteElo "1951"]
[BlackElo "2667"]
[Annotator "ChessBase"]
[PlyCount "96"]
[EventDate "2021.03.27"]
[EventType "team-tourn"]
[EventCountry "NET"]
[SourceTitle "playchess.com"]
[Source "ChessBase"]
[SourceQuality "1"]
[TimeControl "900+5"]

1. c4 {[%emt 0:00:00]} c5 {[%emt 0:00:04]} 2. Nc3 {[%emt 0:00:03]} Nc6 {[%emt 0:00:01]} 3. e4 {[%emt 0:00:04]} g6 {[%emt 0:00:05]} 4. d3 {[%emt 0:00:02]} Bg7 {[%emt 0:00:01]} 5. Be2 {[%emt 0:00:02]} d6 {[%emt 0:00:12]} 6. g4 {[%emt 0:00:03]} Nd4 {[%emt 0:00:20]} 7. h4 {[%emt 0:00:03]} h5 {[%emt 0:00:27]} 8. g5 {[%emt 0:00:02]} e6 {[%emt 0:00:07]} 9. f4 {[%emt 0:00:03]} Ne7 {[%emt 0:00:05]} 10. Nf3 {[%emt 0:00:02]} Nec6 {[%emt 0:00:12]} 11. Be3 {[%emt 0:00:03]} b6 {[%emt 0:00:06]} 12. Qd2 {[%emt 0:00:18]} Rb8 {[%emt 0:00:12]} 13. a4 {[%emt 0:00:03]} a6 {[%emt 0:00:03]} 14. Bd1 {[%emt 0:00:04]} O-O {[%emt 0:00:06]} 15. Bxd4 {[%emt 0:00:12]} Nxd4 {[%emt 0:00:10]} 16. Nxd4 {[%emt 0:00:02]} Bxd4 {[%emt 0:00:06]} 17. Ne2 {[%emt 0:00:02]} Bg7 {[%emt 0:00:01]} 18. Rb1 {[%emt 0:00:05]} b5 {[%emt 0:00:03]} 19. axb5 {[%emt 0:00:06]} axb5 {[%emt 0:00:01]} 20. b3 {[%emt 0:00:12]} bxc4 {[%emt 0:00:30]} 21. dxc4 {[%emt 0:00:02]} Bb7 {[%emt 0:00:03]} 22. Bc2 {[%emt 0:00:07]} d5 {[%emt 0:00:09]} 23. cxd5 {[%emt 0:00:02]} exd5 {[%emt 0:00:01]} 24. e5 {[%emt 0:00:01]} d4 {[%emt 0:00:08]} 25. O-O {[%emt 0:00:08]} Qd5 {[%emt 0:00:26]} 26. Ng3 {[%emt 0:00:04]} d3 {[%emt 0:00:21]} 27. Bxd3 {[%emt 0:00:07]} Ba6 {[%emt 0:00:49]} 28. Rbd1 {[%emt 0:00:10]} Rfd8 {[%emt 0:01:25]} 29. Bxa6 {[%emt 0:00:05]} Qxd2 {[%emt 0:00:02]} 30. Rxd2 {[%emt 0:00:02]} Rxd2 {[%emt 0:00:01]} 31. Bc4 {[%emt 0:00:02]} Rbd8 {[%emt 0:01:05]} 32. Rf2 {[%emt 0:00:08]} Bf8 {[%emt 0:00:15]} 33. Rxd2 {[%emt 0:00:04]} Rxd2 {[%emt 0:00:03]} 34. Ne4 {[%emt 0:00:01]} Rd4 {[%emt 0:00:14]} 35. Nf6+ {[%emt 0:00:02]} Kg7 {[%emt 0:00:01]} 36. Ne8+ {[%emt 0:00:02]} Kh8 {[%emt 0:00:03]} 37. Bxf7 {[%emt 0:00:03]} Rxf4 {[%emt 0:00:01]} 38. Bxg6 {[%emt 0:00:02]} Rxh4 {[%emt 0:00:06]} 39. Nf6 {[%emt 0:00:02]} Rh3 {[%emt 0:00:05]} 40. Bf7 {[%emt 0:00:08]} Rg3+ {[%emt 0:00:07]} 41. Kf2 {[%emt 0:00:08]} Rxg5 {[%emt 0:00:08]} 42. Nd7 {[%emt 0:00:06]} Rf5+ {[%emt 0:00:04]} 43. Ke3 {[%emt 0:00:03]} Rxf7 {[%emt 0:00:01]} 44. e6 {[%emt 0:00:01]} Rxd7 {[%emt 0:00:03]} 45. exd7 {[%emt 0:00:02]} Be7 {[%emt 0:00:01]} 46. Ke4 {[%emt 0:00:02]} h4 {[%emt 0:00:02]} 47. Kf4 {[%emt 0:00:02]} Kg7 {[%emt 0:00:02]} 48. Kg4 {[%emt 0:00:01]} Kf7 {[%emt 0:00:01]} 0-1

[Event "European Online Club-ch-D 2021"]
[Site "Online"]
[Date "2021.03.27"]
[Round "8.10"]
[White "Nandhidhaa, P V"]
[Black "Lagarde, Maxime"]
[Result "0-1"]
[ECO "B45"]
[WhiteElo "2365"]
[BlackElo "2640"]
[Annotator "ChessBase"]
[PlyCount "46"]
[EventDate "2021.03.27"]
[EventType "team-tourn"]
[EventCountry "NET"]
[SourceTitle "playchess.com"]
[Source "ChessBase"]
[SourceQuality "1"]
[TimeControl "900+5"]

1. e4 {[%emt 0:00:00]} c5 {[%emt 0:00:05]} 2. Nf3 {[%emt 0:00:03]} e6 {[%emt 0:00:01]} 3. d4 {[%emt 0:00:05]} cxd4 {[%emt 0:00:00]} 4. Nxd4 {[%emt 0:00:02]} Nf6 {[%emt 0:00:01]} 5. Nc3 {[%emt 0:00:12]} Nc6 {[%emt 0:00:02]} 6. Nxc6 {[%emt 0:01:04]} bxc6 {[%emt 0:00:00]} 7. e5 {[%emt 0:01:22]} Nd5 {[%emt 0:00:03]} 8. Ne4 {[%emt 0:01:16]} Qc7 {[%emt 0:00:04]} 9. f4 {[%emt 0:00:33]} Qb6 {[%emt 0:00:20]} 10. Qe2 {[%emt 0:01:45]} f5 {[%emt 0:03:29]} 11. exf6 {[%emt 0:00:29]} Nxf6 {[%emt 0:00:03]} 12. Nxf6+ {[%emt 0:00:37]} gxf6 {[%emt 0:00:00]} 13. Qh5+ {[%emt 0:01:08]} Kd8 {[%emt 0:00:04]} 14. Bd2 {[%emt 0:00:48]} Qxb2 {[%emt 0:01:37]} 15. Ba5+ {[%emt 0:00:08]} Ke7 {[%emt 0:00:03]} 16. Rd1 {[%emt 0:00:11]} d5 {[%emt 0:01:36]} 17. Be2 {[%emt 0:01:37]} Qxc2 {[%emt 0:02:38]} 18. Bb4+ {[%emt 0:00:35]} Kd8 {[%emt 0:00:56]} 19. Bxf8 {[%emt 0:01:15]} Rxf8 {[%emt 0:00:00]} 20. Qh6 {[%emt 0:00:55]} Ke7 {[%emt 0:00:20]} 21. Bh5 {[%emt 0:01:45]} Qxg2 {[%emt 0:00:11]} 22. Qxh7+ {[%emt 0:00:03]} Kd6 {[%emt 0:00:02]} 23. Rf1 {[%emt 0:00:14]} Ba6 {[%emt 0:00:03]} 0-1

[Event "European Online Club-ch-D 2021"]
[Site "Online"]
[Date "2021.03.27"]
[Round "8.11"]
[White "Maurizzi, Marc Andria"]
[Black "Dauletova, Gulmira"]
[Result "1-0"]
[ECO "C77"]
[WhiteElo "2461"]
[BlackElo "2285"]
[Annotator "ChessBase"]
[PlyCount "93"]
[EventDate "2021.03.27"]
[EventType "team-tourn"]
[EventCountry "NET"]
[SourceTitle "playchess.com"]
[Source "ChessBase"]
[SourceQuality "1"]
[TimeControl "900+5"]

1. e4 {[%emt 0:00:00]} e5 {[%emt 0:00:04]} 2. Nf3 {[%emt 0:00:13]} Nc6 {[%emt 0:00:02]} 3. Bb5 {[%emt 0:00:05]} a6 {[%emt 0:00:04]} 4. Ba4 {[%emt 0:00:03]} Nf6 {[%emt 0:00:03]} 5. Nc3 {[%emt 0:00:05]} b5 {[%emt 0:00:52]} 6. Bb3 {[%emt 0:00:03]} Be7 {[%emt 0:00:02]} 7. a4 {[%emt 0:00:34]} b4 {[%emt 0:00:12]} 8. Nd5 {[%emt 0:00:01]} O-O {[%emt 0:02:14]} 9. Nxf6+ {[%emt 0:00:09]} Bxf6 {[%emt 0:00:02]} 10. Bd5 {[%emt 0:00:00]} Bb7 {[%emt 0:00:05]} 11. d3 {[%emt 0:00:03]} Na5 {[%emt 0:00:18]} 12. Bxb7 {[%emt 0:00:06]} Nxb7 {[%emt 0:00:01]} 13. b3 {[%emt 0:00:03]} c5 {[%emt 0:00:09]} 14. Bb2 {[%emt 0:00:11]} Re8 {[%emt 0:00:04]} 15. Qe2 {[%emt 0:00:02]} d5 {[%emt 0:00:10]} 16. O-O-O {[%emt 0:00:01]} Na5 {[%emt 0:00:31]} 17. Kb1 {[%emt 0:00:34]} Nc6 {[%emt 0:00:05]} 18. g4 {[%emt 0:00:46]} Nd4 {[%emt 0:00:37]} 19. Qe3 {[%emt 0:00:04]} Nxf3 {[%emt 0:05:22]} 20. Qxf3 {[%emt 0:00:00]} d4 {[%emt 0:00:02]} 21. Rdg1 {[%emt 0:01:39]} Re6 {[%emt 0:00:26]} 22. Qf5 {[%emt 0:02:09]} Bg5 {[%emt 0:00:58]} 23. h4 {[%emt 0:00:12]} Bf4 {[%emt 0:00:52]} 24. g5 {[%emt 0:00:04]} Rb8 {[%emt 0:01:26]} 25. h5 {[%emt 0:00:30]} Qe8 {[%emt 0:00:08]} 26. Rh4 {[%emt 0:00:39]} Bd2 {[%emt 0:00:23]} 27. Rd1 {[%emt 0:01:14]} Bf4 {[%emt 0:00:27]} 28. Rg1 {[%emt 0:00:12]} Bd2 {[%emt 0:00:03]} 29. Rhg4 {[%emt 0:00:36]} Rbb6 {[%emt 0:00:08]} 30. Bc1 {[%emt 0:00:19]} Bxc1 {[%emt 0:00:04]} 31. Kxc1 {[%emt 0:00:00]} Rbc6 {[%emt 0:00:26]} 32. R1g3 {[%emt 0:00:28]} Rc7 {[%emt 0:00:09]} 33. Rh4 {[%emt 0:01:05]} Rcc6 {[%emt 0:00:04]} 34. f4 {[%emt 0:00:11]} exf4 {[%emt 0:00:21]} 35. Rxf4 {[%emt 0:00:03]} Re5 {[%emt 0:00:07]} 36. Qg4 {[%emt 0:00:04]} Rce6 {[%emt 0:00:11]} 37. Rgf3 {[%emt 0:00:04]} Re7 {[%emt 0:00:03]} 38. Rf5 {[%emt 0:00:21]} Qb8 {[%emt 0:00:38]} 39. h6 {[%emt 0:00:14]} g6 {[%emt 0:00:15]} 40. Rf6 {[%emt 0:00:03]} R5e6 {[%emt 0:00:04]} 41. Rxf7 {[%emt 0:00:01]} Rxe4 {[%emt 0:00:08]} 42. Rf8+ {[%emt 0:00:09]} Qxf8 {[%emt 0:00:03]} 43. Rxf8+ {[%emt 0:00:00]} Kxf8 {[%emt 0:00:02]} 44. dxe4 {[%emt 0:00:01]} Kf7 {[%emt 0:00:09]} 45. Kd2 {[%emt 0:00:04]} Re5 {[%emt 0:00:03]} 46. Qf4+ {[%emt 0:00:02]} Ke6 {[%emt 0:00:02]} 47. Qf6+ {[%emt 0:00:02]} 1-0